fUSD/lending_fUSD_20250413
["ID","MTS","AMOUNT","RATE_DAILY","PERIOD"]
[357887543,1744509041047,-500.0,0.00019452,2]
[357887544,1744509041056,-500.0,0.00019452,2]
[357887545,1744509041066,-500.0,0.00019452,2]
[357887546,1744509041075,-500.0,0.00019452,2]
[357887547,1744509041085,-500.0,0.00019452,2]
[357887548,1744509041095,-500.0,0.00019452,2]
[357887549,1744509041104,-500.0,0.00019452,2]
[357887550,1744509041113,-606.82115263,0.00019452,2]
[357887551,1744509041123,-500.0,0.00019452,2]
[357887552,1744509041132,-500.0,0.00019452,2]
[357887553,1744509041142,-454.29449405,0.00019452,2]
[357887554,1744509041153,-500.0,0.00019452,2]
[357887555,1744509041163,-500.0,0.00019452,2]
[357887556,1744509041172,-1800.1,0.00019452,2]
[357887557,1744509041181,-500.0,0.00019452,2]
[357887558,1744509041190,-6711.88886732,0.00019452,2]
[357887569,1744509042675,-809.97791485,0.00019452,2]
[357887573,1744509042832,-1569.32156921,0.00019452,2]
[357887574,1744509042843,-310.24124982,0.00019452,2]
[357887575,1744509044416,-6893.94016507,0.00019452,2]
[357887576,1744509044427,-3840.45983549,0.00019452,2]
[357887577,1744509044439,-548.16383201,0.00019452,2]
[357887578,1744509044453,-7800.0,0.00019452,2]
[357887581,1744509045763,-959.71796455,0.00019452,2]
[357887582,1744509045775,-259.20999954,0.00019452,2]
[357887583,1744509053995,1104.85,0.00016957,2]
[357887584,1744509121400,350.0,0.00019125,12]
[357887585,1744509169923,10217.08,0.0002,3]
[357887586,1744509567748,1926.0,0.0003,120]
[357887587,1744509615665,410.73988,0.0003,30]
[357887588,1744509617531,410.73988,0.00019999,3]
[357887589,1744509617967,410.73988,0.00019997,3]
[357887590,1744509618828,410.73988,0.00019994,3]
[357887591,1744509619121,410.73988,0.00019992,3]
[357887592,1744509619416,410.73988,0.0001999,3]
[357887593,1744509621566,410.73988,0.0002,4]
[357887594,1744509621861,151.612994,0.00019999,3]
[357887595,1744509623478,151.612994,0.0002,5]
[357887596,1744509625505,410.73988,0.0002,5]
[357887597,1744509625917,410.73988,0.00019966,5]
[357887598,1744509626222,410.73988,0.00019932,5]
[357887599,1744509626513,410.73988,0.00019897,5]
[357887600,1744509626808,410.73988,0.00019863,5]
[357887602,1744509721092,350.0,0.00018553,12]
[357887603,1744509887686,-299.81585527,0.000184,2]
[357887605,1744509940716,-266.87529628,0.00018392,2]
[357887606,1744509966429,-2084.84649258,0.000184,2]
[357887607,1744510030598,1107.89,0.0001592,2]
[357887608,1744510031443,-298.137859,0.00018184,2]
[357887609,1744510047611,-250.0,0.00018092,2]
[357887610,1744510100879,1082.2246028,0.00019985,5]
[357887611,1744510120033,-354.37,0.00018092,2]
[357887612,1744510200061,-214.6347184,0.00018092,2]
[357887616,1744510231902,-562.1259186,0.00018092,2]
[357887617,1744510231913,-487.8740814,0.00018184,2]
[357887618,1744510231970,-321.8780596,0.00018184,2]
[357887619,1744510231980,-669.41,0.00018456,2]
[357887620,1744510231989,-669.41,0.00018461,2]
[357887621,1744510231998,-669.41,0.00018466,2]
[357887622,1744510232007,-669.41,0.00018471,2]
[357887623,1744510232016,-669.41,0.00018476,2]
[357887624,1744510232025,-669.41,0.00018481,2]
[357887625,1744510232035,-669.41,0.00018485,2]
[357887626,1744510232044,-669.41,0.0001849,2]
[357887627,1744510232053,-9319.81,0.00018493,2]
[357887628,1744510232062,-669.41,0.00018495,2]
[357887629,1744510232071,-669.41,0.000185,2]
[357887630,1744510232080,-669.41,0.00018505,2]
[357887631,1744510232089,-669.41,0.0001851,2]
[357887632,1744510232098,-36.9919404,0.00018515,2]
[357887633,1744510232110,-632.4180596,0.00018515,2]
[357887634,1744510232119,-669.41,0.00018519,2]
[357887635,1744510232128,-669.41,0.00018524,2]
[357887636,1744510232137,-669.41,0.00018529,2]
[357887637,1744510232146,-669.41,0.00018534,2]
[357887638,1744510232155,-669.41,0.00018539,2]
[357887639,1744510232164,-669.41,0.00018544,2]
[357887640,1744510232173,-669.41,0.00018548,2]
[357887641,1744510232182,-1000.0,0.00018557,2]
[357887642,1744510232191,-250.0,0.00018572,2]
[357887643,1744510232201,-210.26,0.0001865,2]
[357887645,1744510232210,-250.0,0.00019,2]
[357887647,1744510232219,-471.4519404,0.00019168,2]
[357887649,1744510232230,-757.57773605,0.00019168,2]
[357887651,1744510232239,-386.29884694,0.00019172,2]
[357887653,1744510232249,-500.0,0.00019173,2]
[357887655,1744510232257,-500.0,0.00019178,2]
[357887657,1744510232267,-500.0,0.00019178,2]
[357887659,1744510232276,-500.0,0.00019178,2]
[357887661,1744510232284,-500.0,0.00019178,2]
[357887663,1744510232293,-500.0,0.00019178,2]
[357887665,1744510232302,-500.0,0.00019178,2]
[357887667,1744510232311,-500.0,0.00019178,2]
[357887669,1744510232320,-500.0,0.00019178,2]
[357887670,1744510232329,-500.0,0.00019178,2]
[357887672,1744510232339,-500.0,0.00019178,2]
[357887674,1744510232349,-500.0,0.00019178,2]
[357887676,1744510232358,-500.0,0.00019178,2]
[357887677,1744510232367,-517.01,0.00019178,2]
[357887678,1744510232376,-500.0,0.00019178,2]
[357887679,1744510232386,-500.0,0.00019178,2]
[357887680,1744510232395,-500.0,0.00019178,2]
[357887681,1744510232404,-500.0,0.00019178,2]
[357887682,1744510232413,-500.0,0.00019178,2]
[357887683,1744510232422,-500.0,0.00019178,2]
[357887684,1744510232431,-500.0,0.00019178,2]
[357887685,1744510232441,-500.0,0.00019178,2]
[357887686,1744510232449,-500.0,0.00019178,2]
[357887687,1744510232458,-500.0,0.00019178,2]
[357887688,1744510232467,-500.0,0.00019178,2]
[357887689,1744510232477,-500.0,0.00019178,2]
[357887690,1744510232486,-500.0,0.00019178,2]
[357887691,1744510232495,-500.0,0.00019178,2]
[357887692,1744510232504,-364.6268458,0.00019178,2]
[357887693,1744510232513,-500.0,0.00019178,2]
[357887694,1744510232522,-16.45376229,0.00019178,2]
[357887695,1744510232548,-169.54,0.00018384,2]
[357887696,1744510232557,-483.54623771,0.00019178,2]
[357887697,1744510232566,-500.0,0.00019178,2]
[357887698,1744510232576,-500.0,0.00019178,2]
[357887699,1744510232585,-527.87,0.00019178,2]
[357887700,1744510232594,-571.01435916,0.00019178,2]
[357887701,1744510232603,-500.0,0.00019178,2]
[357887702,1744510232838,-500.0,0.00019178,2]
[357887703,1744510232848,-433.45504945,0.00019178,2]
[357887704,1744510232860,-66.54495055,0.00019178,2]
[357887705,1744510232872,-500.0,0.00019178,2]
[357887706,1744510232882,-400.82201617,0.00019178,2]
[357887707,1744510232899,-174.59317718,0.00019178,2]
[357887708,1744510232917,-500.0,0.00019178,2]
[357887709,1744510232930,-500.0,0.00019178,2]
[357887710,1744510232948,-500.0,0.00019178,2]
[357887711,1744510232960,-500.0,0.00019178,2]
[357887712,1744510232970,-75.40682282,0.00019178,2]
[357887713,1744510232982,-424.59317718,0.00019178,2]
[357887714,1744510232991,-335.84211687,0.00019178,2]
[357887715,1744510233000,-500.0,0.00019178,2]
[357887716,1744510233010,-421.74311857,0.00019178,2]
[357887718,1744510237908,-500.0,0.00019178,2]
[357887719,1744510237920,-500.0,0.00019178,2]
[357887720,1744510237929,-489.39448947,0.00019178,2]
[357887721,1744510237939,-500.0,0.00019178,2]
[357887722,1744510237950,-500.0,0.00019178,2]
[357887723,1744510237960,-500.0,0.00019178,2]
[357887724,1744510237969,-500.0,0.00019178,2]
[357887725,1744510237979,-807.12,0.00019178,2]
[357887726,1744510237988,-500.0,0.00019178,2]
[357887727,1744510237997,-500.0,0.00019178,2]
[357887728,1744510238006,-3653.66,0.00019178,2]
[357887729,1744510238015,-151.97055685,0.00019178,2]
[357887730,1744510238027,-348.02944315,0.00019178,2]
[357887731,1744510238036,-959.0,0.00019178,2]
[357887732,1744510238045,-500.0,0.00019178,2]
[357887733,1744510238054,-500.0,0.00019178,2]
[357887734,1744510238063,-500.0,0.00019178,2]
[357887735,1744510238073,-422.20788526,0.00019178,2]
[357887736,1744510238096,-77.79211474,0.00019178,2]
[357887737,1744510238105,-1223.38855304,0.00019178,2]
[357887738,1744510238117,-4448.99144696,0.00019178,2]
[357887739,1744510238126,-500.0,0.00019178,2]
[357887740,1744510238136,-500.0,0.00019178,2]
[357887741,1744510238145,-500.0,0.00019178,2]
[357887742,1744510238154,-500.0,0.00019178,2]
[357887743,1744510238163,-829.37,0.00019178,2]
[357887744,1744510238173,-500.0,0.00019178,2]
[357887745,1744510238182,-296.26190531,0.00019178,2]
[357887746,1744510238194,-203.73809469,0.00019178,2]
[357887747,1744510238205,-500.0,0.00019178,2]
[357887748,1744510238214,-500.0,0.00019178,2]
[357887749,1744510238223,-500.0,0.00019178,2]
[357887750,1744510238232,-500.0,0.00019178,2]
[357887751,1744510238241,-500.0,0.00019178,2]
[357887752,1744510238250,-500.0,0.00019178,2]
[357887753,1744510238260,-500.0,0.00019178,2]
[357887754,1744510238269,-1422.45,0.00019178,2]
[357887755,1744510238278,-500.0,0.00019178,2]
[357887756,1744510238287,-3819.38287064,0.00019178,2]
[357887757,1744510238299,-6553.87734657,0.00019178,2]
[357887758,1744510238310,-667.88056973,0.00019178,2]
[357887759,1744510238321,-2050.29946678,0.00019178,2]
[357887760,1744510238332,-427.13421591,0.00019178,2]
[357887762,1744510238411,-7044.99999985,0.00019178,2]
[357887764,1744510238422,-10667.41553052,0.00019178,2]
[357887766,1744510238432,-500.0,0.00019178,2]
[357887768,1744510238441,-618.18,0.00019178,2]
[357887770,1744510238451,-500.0,0.00019178,2]
[357887772,1744510238461,-1650.09,0.00019178,2]
[357887773,1744510238470,-500.0,0.00019178,2]
[357887775,1744510238479,-500.0,0.00019178,2]
[357887777,1744510238488,-500.0,0.00019178,2]
[357887779,1744510238498,-651.2,0.00019178,2]
[357887781,1744510238507,-933.96,0.00019178,2]
[357887782,1744510238516,-500.0,0.00019178,2]
[357887783,1744510238525,-500.0,0.00019178,2]
[357887784,1744510238535,-613.47,0.00019178,2]
[357887785,1744510238544,-500.0,0.00019178,2]
[357887786,1744510238553,-500.0,0.00019178,2]
[357887787,1744510238562,-500.0,0.00019178,2]
[357887788,1744510238571,-500.0,0.00019178,2]
[357887789,1744510238580,-500.0,0.00019178,2]
[357887791,1744510238590,-500.0,0.00019178,2]
[357887793,1744510238599,-500.0,0.00019178,2]
[357887795,1744510238608,-500.0,0.00019178,2]
[357887797,1744510238617,-1641.99,0.00019178,2]
[357887799,1744510238626,-500.0,0.00019178,2]
[357887800,1744510238635,-650.68804855,0.00019178,2]
[357887801,1744510238647,-2619.84195145,0.00019178,2]
[357887802,1744510238656,-500.0,0.00019178,2]
[357887803,1744510238665,-500.0,0.00019178,2]
[357887804,1744510238674,-500.0,0.00019178,2]
[357887805,1744510238683,-1072.58,0.00019178,2]
[357887806,1744510238692,-533.62,0.00019178,2]
[357887807,1744510238701,-619.53,0.00019178,2]
[357887808,1744510238711,-500.0,0.00019178,2]
[357887809,1744510238719,-500.0,0.00019178,2]
[357887810,1744510238728,-500.0,0.00019178,2]
[357887811,1744510238737,-500.0,0.00019178,2]
[357887812,1744510238746,-593.52245218,0.00019178,2]
[357887813,1744510238756,-500.0,0.00019178,2]
[357887814,1744510238765,-500.0,0.00019178,2]
[357887815,1744510238774,-1486.92,0.00019178,2]
[357887816,1744510238783,-500.0,0.00019178,2]
[357887817,1744510238793,-500.0,0.00019178,2]
[357887818,1744510238802,-150.0,0.00019178,2]
[357887819,1744510238811,-500.0,0.00019178,2]
[357887820,1744510238820,-500.0,0.00019178,2]
[357887821,1744510238829,-500.0,0.00019178,2]
[357887822,1744510238838,-500.0,0.00019178,2]
[357887823,1744510238847,-500.0,0.00019178,2]
[357887824,1744510238857,-578.96,0.00019178,2]
[357887825,1744510238867,-500.0,0.00019178,2]
[357887826,1744510238881,-500.0,0.00019178,2]
[357887827,1744510238890,-500.0,0.00019178,2]
[357887828,1744510238899,-500.0,0.00019178,2]
[357887829,1744510238908,-500.0,0.00019178,2]
[357887830,1744510238918,-500.0,0.00019178,2]
[357887831,1744510238928,-500.0,0.00019178,2]
[357887832,1744510238937,-500.0,0.00019178,2]
[357887833,1744510238946,-500.0,0.00019178,2]
[357887834,1744510238955,-500.0,0.00019178,2]
[357887835,1744510238965,-500.0,0.00019178,2]
[357887836,1744510238975,-500.0,0.00019178,2]
[357887837,1744510238984,-959.0,0.00019233,2]
[357887838,1744510238993,-150.0,0.00019233,2]
[357887839,1744510239003,-1570.03116565,0.00019253,2]
[357887840,1744510239011,-7700.43250355,0.00019285,2]
[357887841,1744510239020,-959.0,0.00019288,2]
[357887842,1744510239030,-203.48037714,0.00019288,2]
[357887843,1744510239039,-150.0,0.000193,2]
[357887844,1744510239049,-239.31904554,0.00019325,2]
[357887845,1744510239060,-783.33,0.00019325,2]
[357887846,1744510239079,-547.38212009,0.00019325,2]
[357887847,1744510239088,-959.0,0.00019342,2]
[357887848,1744510239097,-1678.93633365,0.00019352,2]
[357887849,1744510239108,-3110.01716113,0.00019352,2]
[357887850,1744510239119,-2048.003565,0.00019352,2]
[357887851,1744510239129,-4059.62035122,0.00019352,2]
[357887852,1744510239140,-1795.08269747,0.00019352,2]
[357887853,1744510239151,-15354.64553326,0.00019352,2]
[357887854,1744510239161,-628.0812623,0.00019352,2]
[357887855,1744510239174,-26986.85548915,0.00019352,2]
[357887856,1744510239185,-1052.48092044,0.00019352,2]
[357887857,1744510239195,-363.50002513,0.00019352,2]
[357887858,1744510239206,-4688.42003455,0.00019352,2]
[357887860,1744510240271,-331.07,0.00019178,2]
[357887861,1744510240283,-168.93,0.00019178,2]
[357887862,1744510240292,-201.58544977,0.00019352,2]
[357887863,1744510240367,-0.07527839,0.00019352,2]
[357887864,1744510240379,-3757.47513947,0.00019352,2]
[357887865,1744510240390,-386.00713791,0.00019352,2]
[357887866,1744510240445,-37549.99999999,0.00019352,2]
[357887867,1744510240457,-1505.24559428,0.00019352,2]
[357887868,1744510240513,-117195.60449323,0.00019352,2]
[357887869,1744510240522,-517.67935942,0.00019352,2]
[357887870,1744510240531,-698.3599,0.00019352,2]
[357887871,1744510240541,-209814.5839,0.00019352,2]
[357887872,1744510240551,-7700.4325035,0.00019353,2]
[357887873,1744510240561,-501.67907674,0.00019373,2]
[357887874,1744510240570,-500.0,0.00019373,2]
[357887875,1744510240580,-176.36,0.00019385,2]
[357887876,1744510240590,-1570.03116563,0.00019397,2]
[357887877,1744510240599,-959.0,0.00019397,2]
[357887878,1744510240609,-709.0141384,0.00019399,2]
[357887879,1744510240618,-386.29884695,0.00019417,2]
[357887880,1744510240627,-7700.4325035,0.00019422,2]
[357887881,1744510240637,-1119.7970216,0.00019439,2]
[357887882,1744510240646,-959.0,0.00019452,2]
[357887883,1744510240655,-500.0,0.00019452,2]
[357887884,1744510240665,-500.0,0.00019452,2]
[357887885,1744510240675,-500.0,0.00019452,2]
[357887886,1744510240684,-500.0,0.00019452,2]
[357887887,1744510240694,-500.0,0.00019452,2]
[357887888,1744510240703,-500.0,0.00019452,2]
[357887889,1744510240713,-500.0,0.00019452,2]
[357887890,1744510240723,-500.0,0.00019452,2]
[357887891,1744510240733,-500.0,0.00019452,2]
[357887892,1744510240743,-517.01,0.00019452,2]
[357887893,1744510240752,-500.0,0.00019452,2]
[357887894,1744510240762,-500.0,0.00019452,2]
[357887895,1744510240772,-500.0,0.00019452,2]
[357887896,1744510240781,-500.0,0.00019452,2]
[357887897,1744510240791,-500.0,0.00019452,2]
[357887898,1744510240801,-500.0,0.00019452,2]
[357887899,1744510240810,-312.673953,0.00019452,2]
[357887900,1744510240820,-500.0,0.00019452,2]
[357887901,1744510240829,-500.0,0.00019452,2]
[357887902,1744510240838,-500.0,0.00019452,2]
[357887903,1744510240848,-500.0,0.00019452,2]
[357887904,1744510240858,-500.0,0.00019452,2]
[357887905,1744510240868,-500.0,0.00019452,2]
[357887906,1744510240881,-500.0,0.00019452,2]
[357887907,1744510240891,-235.73779066,0.00019452,2]
[357887908,1744510240900,-500.0,0.00019452,2]
[357887909,1744510240911,-500.0,0.00019452,2]
[357887910,1744510240920,-500.0,0.00019452,2]
[357887911,1744510240931,-527.87,0.00019452,2]
[357887912,1744510240940,-500.0,0.00019452,2]
[357887913,1744510240951,-500.0,0.00019452,2]
[357887914,1744510240960,-500.0,0.00019452,2]
[357887915,1744510240970,-500.0,0.00019452,2]
[357887916,1744510240979,-500.0,0.00019452,2]
[357887917,1744510240989,-500.0,0.00019452,2]
[357887918,1744510240998,-500.0,0.00019452,2]
[357887919,1744510241007,-500.0,0.00019452,2]
[357887920,1744510241018,-500.0,0.00019452,2]
[357887921,1744510241027,-500.0,0.00019452,2]
[357887922,1744510241036,-500.0,0.00019452,2]
[357887923,1744510241045,-500.0,0.00019452,2]
[357887924,1744510241055,-500.0,0.00019452,2]
[357887925,1744510241064,-500.0,0.00019452,2]
[357887926,1744510241073,-589.69734044,0.00019452,2]
[357887927,1744510241082,-500.0,0.00019452,2]
[357887928,1744510241091,-807.12,0.00019452,2]
[357887929,1744510241100,-500.0,0.00019452,2]
[357887930,1744510241109,-3653.66,0.00019452,2]
[357887931,1744510241118,-500.0,0.00019452,2]
[357887932,1744510241127,-500.0,0.00019452,2]
[357887933,1744510241136,-500.0,0.00019452,2]
[357887934,1744510241145,-500.0,0.00019452,2]
[357887935,1744510241155,-500.0,0.00019452,2]
[357887936,1744510241164,-5672.38,0.00019452,2]
[357887937,1744510241173,-500.0,0.00019452,2]
[357887938,1744510241182,-500.0,0.00019452,2]
[357887939,1744510241192,-500.0,0.00019452,2]
[357887940,1744510241201,-500.0,0.00019452,2]
[357887941,1744510241210,-829.37,0.00019452,2]
[357887942,1744510241219,-500.0,0.00019452,2]
[357887943,1744510241229,-500.0,0.00019452,2]
[357887944,1744510241238,-500.0,0.00019452,2]
[357887945,1744510241248,-500.0,0.00019452,2]
[357887946,1744510241258,-468.89007949,0.00019452,2]
[357887947,1744510241267,-500.0,0.00019452,2]
[357887948,1744510241276,-500.0,0.00019452,2]
[357887949,1744510241285,-500.0,0.00019452,2]
[357887950,1744510241295,-337.00232555,0.00019452,2]
[357887951,1744510241304,-1422.45,0.00019452,2]
[357887952,1744510241313,-500.0,0.00019452,2]
[357887953,1744510241322,-31230.99,0.00019452,2]
[357887954,1744510241332,-500.0,0.00019452,2]
[357887955,1744510241341,-618.18,0.00019452,2]
[357887956,1744510241351,-500.0,0.00019452,2]
[357887957,1744510241360,-1650.09,0.00019452,2]
[357887958,1744510241369,-500.0,0.00019452,2]
[357887959,1744510241381,-500.0,0.00019452,2]
[357887960,1744510241390,-651.2,0.00019452,2]
[357887961,1744510241399,-500.0,0.00019452,2]
[357887962,1744510241409,-933.96,0.00019452,2]
[357887963,1744510241418,-500.0,0.00019452,2]
[357887964,1744510241427,-500.0,0.00019452,2]
[357887965,1744510241437,-613.47,0.00019452,2]
[357887966,1744510241446,-500.0,0.00019452,2]
[357887967,1744510241455,-500.0,0.00019452,2]
[357887968,1744510241678,-500.0,0.00019452,2]
[357887969,1744510241689,-500.0,0.00019452,2]
[357887970,1744510241699,-500.0,0.00019452,2]
[357887971,1744510241708,-500.0,0.00019452,2]
[357887972,1744510241718,-500.0,0.00019452,2]
[357887973,1744510241727,-500.0,0.00019452,2]
[357887974,1744510241738,-1641.99,0.00019452,2]
[357887975,1744510241747,-500.0,0.00019452,2]
[357887976,1744510241757,-3270.53,0.00019452,2]
[357887977,1744510241766,-500.0,0.00019452,2]
[357887978,1744510241776,-500.0,0.00019452,2]
[357887979,1744510241786,-500.0,0.00019452,2]
[357887980,1744510241795,-1072.58,0.00019452,2]
[357887981,1744510241804,-533.62,0.00019452,2]
[357887982,1744510241813,-619.53,0.00019452,2]
[357887983,1744510241823,-500.0,0.00019452,2]
[357887984,1744510241832,-500.0,0.00019452,2]
[357887985,1744510241841,-500.0,0.00019452,2]
[357887986,1744510241850,-500.0,0.00019452,2]
[357887987,1744510241860,-500.0,0.00019452,2]
[357887988,1744510241871,-500.0,0.00019452,2]
[357887989,1744510241881,-1486.92,0.00019452,2]
[357887990,1744510241890,-500.0,0.00019452,2]
[357887991,1744510241900,-500.0,0.00019452,2]
[357887992,1744510241910,-500.0,0.00019452,2]
[357887993,1744510241921,-500.0,0.00019452,2]
[357887994,1744510241931,-500.0,0.00019452,2]
[357887995,1744510241940,-500.0,0.00019452,2]
[357887996,1744510241952,-500.0,0.00019452,2]
[357887997,1744510241962,-578.96,0.00019452,2]
[357887998,1744510241971,-500.0,0.00019452,2]
[357887999,1744510241981,-174.54659633,0.00019452,2]
[357888000,1744510241990,-500.0,0.00019452,2]
[357888001,1744510242000,-500.0,0.00019452,2]
[357888002,1744510242010,-500.0,0.00019452,2]
[357888003,1744510242020,-326.43394485,0.00019452,2]
[357888004,1744510242030,-181.00433449,0.00019452,2]
[357888005,1744510242039,-500.0,0.00019452,2]
[357888006,1744510242049,-500.0,0.00019452,2]
[357888007,1744510242058,-500.0,0.00019452,2]
[357888008,1744510242067,-500.0,0.00019452,2]
[357888009,1744510242077,-500.0,0.00019452,2]
[357888010,1744510242086,-1570.03116563,0.00019469,2]
[357888011,1744510242095,-500.0,0.00019473,2]
[357888012,1744510242105,-500.0,0.00019473,2]
[357888013,1744510242114,-502.94929723,0.00019473,2]
[357888014,1744510242123,-500.0,0.00019473,2]
[357888015,1744510242132,-514.45733583,0.00019473,2]
[357888016,1744510242141,-504.72204853,0.00019473,2]
[357888017,1744510242151,-504.01916654,0.00019473,2]
[357888018,1744510242161,-505.52007068,0.00019473,2]
[357888019,1744510242170,-7700.4325035,0.0001949,2]
[357888020,1744510242179,-959.0,0.00019507,2]
[357888021,1744510242188,-1570.03116563,0.00019541,2]
[357888022,1744510242198,-7700.4325035,0.00019558,2]
[357888023,1744510242207,-959.0,0.00019562,2]
[357888024,1744510242216,-1570.03116563,0.00019612,2]
[357888025,1744510242226,-959.0,0.00019616,2]
[357888026,1744510242235,-7700.4325035,0.00019627,2]
[357888027,1744510242245,-959.0,0.00019671,2]
[357888028,1744510242254,-1570.03116563,0.00019684,2]
[357888029,1744510242263,-7700.4325035,0.00019695,2]
[357888030,1744510242272,-444.94812752,0.000197,2]
[357888031,1744510242282,-300.0,0.00019725,2]
[357888032,1744510242291,-301.71229768,0.00019725,2]
[357888033,1744510242301,-959.0,0.00019726,2]
[357888034,1744510242310,-500.0,0.00019726,2]
[357888035,1744510242318,-500.0,0.00019726,2]
[357888036,1744510242328,-500.0,0.00019726,2]
[357888037,1744510242337,-500.0,0.00019726,2]
[357888038,1744510242347,-500.0,0.00019726,2]
[357888039,1744510242356,-500.0,0.00019726,2]
[357888040,1744510242365,-500.0,0.00019726,2]
[357888041,1744510242374,-500.0,0.00019726,2]
[357888042,1744510242384,-500.0,0.00019726,2]
[357888043,1744510242394,-517.01,0.00019726,2]
[357888044,1744510242403,-500.0,0.00019726,2]
[357888045,1744510242412,-568.15537351,0.00019726,2]
[357888046,1744510242422,-500.0,0.00019726,2]
[357888047,1744510242432,-500.0,0.00019726,2]
[357888048,1744510242442,-500.0,0.00019726,2]
[357888049,1744510242451,-500.0,0.00019726,2]
[357888050,1744510242461,-500.0,0.00019726,2]
[357888051,1744510242470,-500.0,0.00019726,2]
[357888052,1744510242480,-162.93168611,0.00019726,2]
[357888053,1744510242490,-500.0,0.00019726,2]
[357888054,1744510242499,-566.46881006,0.00019726,2]
[357888055,1744510242509,-500.0,0.00019726,2]
[357888056,1744510242518,-500.0,0.00019726,2]
[357888057,1744510242527,-500.0,0.00019726,2]
[357888058,1744510242537,-317.31080346,0.00019726,2]
[357888059,1744510242546,-500.0,0.00019726,2]
[357888060,1744510242555,-527.87,0.00019726,2]
[357888061,1744510242565,-500.0,0.00019726,2]
[357888062,1744510242574,-500.0,0.00019726,2]
[357888063,1744510242583,-500.0,0.00019726,2]
[357888064,1744510242593,-500.0,0.00019726,2]
[357888065,1744510242602,-500.0,0.00019726,2]
[357888066,1744510242611,-500.0,0.00019726,2]
[357888067,1744510242620,-500.0,0.00019726,2]
[357888068,1744510242630,-500.0,0.00019726,2]
[357888069,1744510242640,-500.0,0.00019726,2]
[357888070,1744510242649,-500.0,0.00019726,2]
[357888071,1744510242658,-500.0,0.00019726,2]
[357888072,1744510242668,-500.0,0.00019726,2]
[357888073,1744510242677,-500.0,0.00019726,2]
[357888074,1744510242686,-500.0,0.00019726,2]
[357888075,1744510242695,-500.0,0.00019726,2]
[357888076,1744510242705,-807.12,0.00019726,2]
[357888077,1744510242715,-500.0,0.00019726,2]
[357888078,1744510242724,-3653.66,0.00019726,2]
[357888079,1744510242734,-500.0,0.00019726,2]
[357888081,1744510242744,-500.0,0.00019726,2]
[357888083,1744510242753,-500.0,0.00019726,2]
[357888084,1744510242763,-500.0,0.00019726,2]
[357888085,1744510242772,-430.69332257,0.00019726,2]
[357888086,1744510242782,-5672.38,0.00019726,2]
[357888087,1744510242791,-500.0,0.00019726,2]
[357888088,1744510242801,-500.0,0.00019726,2]
[357888089,1744510242810,-500.0,0.00019726,2]
[357888090,1744510242819,-500.0,0.00019726,2]
[357888091,1744510242829,-829.37,0.00019726,2]
[357888092,1744510242838,-500.0,0.00019726,2]
[357888093,1744510242848,-500.0,0.00019726,2]
[357888095,1744510242859,-500.0,0.00019726,2]
[357888097,1744510242869,-500.0,0.00019726,2]
[357888099,1744510242880,-500.0,0.00019726,2]
[357888101,1744510242890,-500.0,0.00019726,2]